Cogmind - Beta 13 @@@ ROGUE MODE // 2024.04.09 @ 22:21:41 Player: gabr Result: Destroyed by S-27 Virus with Autogun Performance ------------- Evolutions (3) 1500 Regions Visited (5) 1000 Robots Destroyed (67) 335 Value Destroyed (2004) 2004 Prototype IDs (2) 40 Alien Tech Used (0) 0 Bonus (122) 122 TOTAL SCORE: 5001 Bonus ------- High Alert Combat Kills 122 Cogmind --------- Core Integrity 0/700 Matter 219/300 Energy 98/100 System Corruption 3% Temperature Cool (0) Movement Core (50) Location -7/Lower Caves Parts ------- > --- POWER (1) -------- (None) > --- PROPULSION (4) --- (None) > --- UTILITY (5) ------ Advanced Targeting Computer Target Analyzer > --- WEAPON (3) ------- (None) > --- INVENTORY (5) ---- Heavy Deuterium Engine Peak State ------------ > --- POWER ------------ Fission Core > --- PROPULSION ------- Xenon Bombardment Thruster Xenon Bombardment Thruster Xenon Bombardment Thruster Xenon Bombardment Thruster > --- UTILITY ---------- Improved Heat Sink Advanced Cooling System Small Storage Unit Advanced Targeting Computer Target Analyzer > --- WEAPON ----------- Particle Gun Autogun High-powered Shotgun > --- INVENTORY -------- Heavy Deuterium Engine Cesium-ion Thruster Cesium-ion Thruster Xenon Bombardment Thruster Xenon Bombardment Thruster Hardened Medium Armor Plating Hardlight Generator Particle Gun [Rating: 46] Favorites ----------- Power Light Nuclear Core Engine Heavy Deuterium Engine Power Core Light Nuclear Core Propulsion Armored Treads Treads Armored Treads Leg Aluminum Leg Flight Unit Xenon Bombardment Thruster Utility Advanced Targeting Computer Device Cooling System Storage Small Storage Unit Processor Advanced Targeting Computer Hackware Hacking Suite Protection Hardened Heavy Armor Plating Weapon Particle Gun Energy Gun Particle Gun Energy Cannon Ion Cannon Ballistic Gun Light Assault Rifle Launcher Grenade Launcher Special Weapon Flamer Build | -11 -10 -9 -8 -7 -7 ------- Run | Yrd Mat Mat Mat Fac Low Slots Evolved 6 | . . 2 2 2 . Power . | . . . . . . Propulsion 2 | . . 2 . . . Utility 3 | . . . 2 1 . Weapon 1 | . . . . 1 . Parts Attached 112 | 7 1 6 49 35 14 Power 17 | 1 . 1 9 3 3 Engine 9 | 1 . 1 5 1 1 Core 8 | . . . 4 2 2 Reactor . | . . . . . . Propulsion 45 | 2 . 2 18 19 4 Treads 9 | . . . 4 5 . Leg 5 | 2 . 2 1 . . Wheel . | . . . . . . Hover . | . . . . . . Flight 31 | . . . 13 14 4 Utility 25 | 2 1 2 11 5 4 Device 11 | 1 . . 5 3 2 Storage 5 | 1 1 . 1 1 1 Processor 4 | . . . 3 1 . Hackware 1 | . . . 1 . . Protection 4 | . . 2 1 . 1 Artifact . | . . . . . . Weapon 25 | 2 . 1 11 8 3 Energy Gun 11 | . . 1 4 4 2 Energy Cannon 6 | . . . 4 2 . Ballistic Gun 4 | 2 . . . 2 . Ballistic Cannon . | . . . . . . Launcher 3 | . . . 3 . . Special Weapon 1 | . . . . . 1 Impact Weapon . | . . . . . . Slashing Weapon . | . . . . . . Piercing Weapon . | . . . . . . Special Melee Weapon . | . . . . . . Unidentified Prototypes 2 | . . . 1 1 . Parts Lost 36 | . . . 14 2 20 Power 5 | . . . 4 . 1 Propulsion 13 | . . . 5 . 8 Utility 10 | . . . 4 1 5 Weapon 8 | . . . 1 1 6 Highest Loss Streak 18 | . . . 6 1 18 To Critical Strikes . | . . . . . . Average Slot Usage (%) 84 | . 100 99 84 89 50 Engine 5 | . 14 11 4 5 . Core 2 | . . . 4 1 2 Treads 11 | . . . 8 23 . Leg 8 | . 28 44 8 . . Flight 8 | . . . 15 5 10 Device 4 | . 4 . 3 7 6 Storage 9 | . 23 16 9 7 4 Processor 8 | . . . 10 7 15 Hackware 1 | . . . 3 . . Protection 4 | . . 5 3 6 . Energy Gun 5 | . . 2 4 7 4 Energy Cannon 4 | . . . 7 3 . Ballistic Gun 6 | . 28 19 . 5 4 Launcher 1 | . . . 1 3 . Naked Turns . | . . . . . . Heaviest Build 65 | 13 15 17 51 65 29 Greatest Support 96 | 20 20 40 88 96 24 Greatest Overweight (x) 9 | . . . 5 9 9 Average Overweight (x) . | . . . . . . Largest Inventory Capacity 15 | 8 8 8 15 15 8 Average Capacity 10 | 7 8 8 9 13 6 Most Carried 15 | 8 8 8 15 15 8 Average Carried 8 | 4 7 7 8 12 3 Final Capacity 15 | 8 8 8 15 8 5 Final Carried 15 | 8 8 8 15 8 1 Class Distribution -------------------- 39% | Mutant 27% | Scavenger-Gunner 17% | Scavenger-Sprinter 16% | Scavenger-Mutant Dominant Class ---------------- Mutant | -10/Materials Mutant | -9/Materials Scavenger-Mutant | -8/Materials Scavenger-Gunner | -7/Factory Mutant | -7/Lower Caves Resources | -11 -10 -9 -8 -7 -7 ----------- Run | Yrd Mat Mat Mat Fac Low Matter Collected 1500 | 280 12 106 497 448 157 Remotely . | . . . . . . Salvage Created 2209 | 96 29 165 1167 693 59 Parts 155 | 9 4 7 88 43 4 Haulers Intercepted 1 | . . . 1 . . Recyclers Shooed 2 | . . . 1 1 . Parts Field Recycled . | . . . . . . Retrieved Matter . | . . . . . . Parts Self-Destructed 6 | . . . . . 6 Prevented . | . . . . . . Kills | -11 -10 -9 -8 -7 -7 ------- Run | Yrd Mat Mat Mat Fac Low Combat Hostiles Destroyed 51 | . . 3 28 17 3 Guns 25 | . . 3 5 14 3 Cannons 21 | . . . 18 3 . AOE 4 | . . . 4 . . Classes Destroyed 13 | 2 1 2 7 1 . Worker 2 | . . . 1 1 . Builder 1 | . . . 1 . . Tunneler 2 | 2 . . . . . Hauler 1 | . . . 1 . . Recycler 3 | 1 . . 1 1 . Operator 2 | . . . 2 . . Watcher 5 | . 1 . 3 1 . Swarmer 19 | . . . 10 6 3 Cutter 3 | . . . 3 . . Grunt 20 | . . 1 10 9 . Sentry 6 | . . 2 4 . . Programmer 2 | . . . . 2 . Heavy 1 | . . . 1 . . Best Kill Streak 6 | 3 1 2 6 6 2 Combat Bots Only 6 | . . 2 6 6 2 Max Kills in Single Turn 3 | 1 1 1 3 1 1 Gunslinging . | . . . . . . Exploded 2 | . . . 2 . . Melee . | . . . . . . Uniques/NPCs Destroyed . | . . . . . . Combat | -11 -10 -9 -8 -7 -7 -------- Run | Yrd Mat Mat Mat Fac Low Hostile Shots Fired 489 | . . 29 162 106 192 Missed 190 | . . 6 60 42 82 Damage Taken 4689 | . 32 318 1656 1002 1681 Core 1122 | . . 34 385 56 647 Absorbed by Shields 60 | . . . . . 60 Core Remaining (%) 80 | 100 100 91 30 . . Volleys Fired 180 | 5 1 23 97 40 14 Largest 3 | 2 2 2 2 3 3 Hottest 155 | 40 40 40 135 155 113 Shots Fired 352 | 10 2 46 165 106 23 Gun 216 | 10 2 46 40 95 23 Cannon 126 | . . . 119 7 . Launcher 10 | . . . 6 4 . Special . | . . . . . . Kinetic 119 | 10 2 46 2 49 10 Thermal 223 | . . . 157 53 13 Explosive 10 | . . . 6 4 . Electromagnetic . | . . . . . . Robot Hit Streak 24 | 8 10 24 11 9 2 Robot Miss Streak 6 | 1 . 2 4 4 6 Penetration Max . | . . . . . . Secondary Targets 3 | . . . . 1 2 Max Gunslinging Chain 1 | . . . . 1 1 Shots Hit Robots 224 | 8 2 37 93 73 11 Core Hits 116 | 6 2 9 54 39 6 Critical Kills 1 | . . . 1 . . Critical Parts Destroyed 1 | . . 1 . . . Critical Strikes 3 | . . 1 1 1 . Burn 1 | . . . . 1 . Meltdown 1 | . . . 1 . . Destroy 1 | . . 1 . . . Melee Attacks . | . . . . . . Impact . | . . . . . . Slashing . | . . . . . . Piercing . | . . . . . . Sneak Attacks . | . . . . . . Combat Hostiles . | . . . . . . Follow-up Attacks . | . . . . . . Damage Inflicted 4082 | 62 14 291 2216 1323 176 Guns 1961 | 62 14 291 285 1133 176 Cannons 1722 | . . . 1630 92 . Explosions 399 | . . . 301 98 . Melee . | . . . . . . Ramming . | . . . . . . Kinetic 1232 | 62 14 291 8 763 94 Thermal 2451 | . . . 1907 462 82 Explosive 399 | . . . 301 98 . Electromagnetic . | . . . . . . Impact . | . . . . . . Slashing . | . . . . . . Piercing . | . . . . . . Highest Corruption 3 | . 1 . . 3 3 Average Corruption 2 | . 1 . . 2 3 Corruption Purged . | . . . . . . Corruption Blocked . | . . . . . . Effects 10 | . . . . 7 3 Message Errors 2 | . . . . 1 1 Matter Fused 1 | . . . . 1 . Energy Discharges 4 | . . . . 2 2 Data Loss (minor) 2 | . . . . 2 . Data Loss (major) 1 | . . . . 1 . Overload Shots . | . . . . . . Overflow Damage 43 | . . . 29 14 . Projectiles 38 | . . . 24 14 . Explosions 5 | . . . 5 . . Melee . | . . . . . . Knockbacks . | . . . . . . Impact . | . . . . . . Kinetic . | . . . . . . Secondary . | . . . . . . Self-Inflicted Damage 114 | . . . 75 39 . Shots 3 | . . . 2 1 . Rammed . | . . . . . . Targets Rammed . | . . . . . . Kicked . | . . . . . . Crushed . | . . . . . . Highest Temperature 330 | . . 16 330 167 4 Average Temperature 62 | . . 4 71 46 4 Received Heat Transfer 1166 | . . 126 486 171 383 Siege Activations . | . . . . . . Robots Corrupted . | . . . . . . Combat Hostiles . | . . . . . . Parts Fried . | . . . . . . Impact Corruptions . | . . . . . . Robots Melted 1 | . . . 1 . . Combat Hostiles 1 | . . . 1 . . Parts Melted 3 | . . . 2 1 . Heat Transferred 4399 | . . . 3141 1073 185 Parts Sabotaged . | . . . . . . Parts Stolen . | . . . . . . Parts Stripped . | . . . . . . Power Chain Reactions . | . . . . . . Alert | -11 -10 -9 -8 -7 -7 ------- Run | Yrd Mat Mat Mat Fac Low Peak Influence 639 | 15 22 144 639 417 . Initial 269 | . 9 9 60 269 . Average 305 | 5 9 73 441 296 . Maximum Alert Level 2 | . . . 2 2 . Low Security (%) 27 | 100 100 100 5 11 . Level 1 42 | . . . 26 86 . Level 2 29 | . . . 68 2 . Level 3 . | . . . . . . Level 4 . | . . . . . . Level 5 . | . . . . . . High Security . | . . . . . . Max Security . | . . . . . . Squads Dispatched 10 | . . 1 3 6 . Investigation 2 | . . . . 2 . Extermination 1 | . . . . 1 . Reinforcement 4 | . . 1 3 . . Assault . | . . . . . . Garrison 3 | . . . . 3 . Intercept . | . . . . . . Searches Triggered . | . . . . . . Construction Impeded . | . . . . . . Haulers Reinforced . | . . . . . . Active Scanning Responses . | . . . . . . Cargo Convoy Interrupts . | . . . . . . Stealth | -11 -10 -9 -8 -7 -7 --------- Run | Yrd Mat Mat Mat Fac Low Distress Signals 4 | . . 1 3 . . Communications Jammed . | . . . . . . Distress Signals . | . . . . . . Times Spotted 88 | . 1 5 41 19 22 Peak Tracking Total 11 | . 1 3 5 6 11 Tactical Retreats 7 | . . . 3 . 4 Traps | -11 -10 -9 -8 -7 -7 ------- Run | Yrd Mat Mat Mat Fac Low Traps Triggered 1 | . 1 . . . . Indirectly . | . . . . . . Trap Hack Attempts . | . . . . . . Triggered . | . . . . . . Disarmed . | . . . . . . Reprogrammed . | . . . . . . Reused . | . . . . . . Traps Extracted . | . . . . . . Installed . | . . . . . . Triggered . | . . . . . . Machines | -11 -10 -9 -8 -7 -7 ---------- Run | Yrd Mat Mat Mat Fac Low Machines Disabled 4 | . . . 3 1 . Max in Single Turn 2 | . . . 2 1 . Machines Repaired . | . . . . . . Machines Dismantled . | . . . . . . Machines Sabotaged . | . . . . . . Overloaded Fab Kills . | . . . . . . Hacking | -11 -10 -9 -8 -7 -7 --------- Run | Yrd Mat Mat Mat Fac Low Machines Accessed 8 | . 1 . 4 2 1 Terminals 5 | . 1 . 3 1 . Fabricators 1 | . . . . 1 . Repair Stations . | . . . . . . Recycling Units . | . . . . . . Scanalyzers 1 | . . . 1 . . Garrison Access . | . . . . . . Total Hacks 16 | . 1 . 10 4 1 Successful 7 | . 1 . 3 2 1 Failed 9 | . . . 7 2 . Catastrophic 1 | . . . . 1 . Database Lockouts . | . . . . . . Manual 6 | . . . 6 . . Terminals 11 | . 1 . 8 2 . Fabricators 2 | . . . . 2 . Repair Stations . | . . . . . . Recycling Units . | . . . . . . Scanalyzers 2 | . . . 2 . . Garrison Access . | . . . . . . Terminal Hacks 3 | . 1 . 1 . 1 Record 1 | . . . . . 1 Unreport Threat 1 | . 1 . . . . Dispatch Records 1 | . . . 1 . . Fabricator Hacks 2 | . . . . 2 . Load Schematic 1 | . . . . 1 . Build 1 | . . . . 1 . Repair Station Hacks . | . . . . . . Recycling Unit Hacks . | . . . . . . Scanalyzer 2 | . . . 2 . . Insert Component 1 | . . . 1 . . Analyze 1 | . . . 1 . . Garrison Access Hacks . | . . . . . . Unauthorized Hacks . | . . . . . . Terminals . | . . . . . . Fabricators . | . . . . . . Repair Stations . | . . . . . . Recycling Units . | . . . . . . Scanalyzers . | . . . . . . Garrison Access . | . . . . . . Data Cores Recovered . | . . . . . . Used . | . . . . . . Hacking Detections 6 | . . . 4 2 . Full Trace Events 2 | . . . . 2 . Feedback Events . | . . . . . . Feedback Blocked . | . . . . . . Robot Schematics Acquired . | . . . . . . Robots Built . | . . . . . . Authchips . | . . . . . . Time . | . . . . . . Total Robot Build Rating . | . . . . . . Part Schematics Acquired 1 | . . . 1 . . Parts Built 2 | . . . . 2 . Authchips . | . . . . . . Time 73 | . . . . 73 . Total Part Build Rating 6 | . . . . 6 . Parts Repaired . | . . . . . . Time . | . . . . . . Parts Recycled . | . . . . . . Recycled Matter . | . . . . . . Retrieved Matter . | . . . . . . Retrieved Components . | . . . . . . Parts Scanalyzed 1 | . . . 1 . . Part Schematics Acquired 1 | . . . 1 . . Parts Damaged . | . . . . . . Bothacking | -11 -10 -9 -8 -7 -7 ------------ Run | Yrd Mat Mat Mat Fac Low Used RIF Installer . | . . . . . . Robots Hacked . | . . . . . . Non-combat . | . . . . . . Combat . | . . . . . . Robot Hacks Applied . | . . . . . . Relay Couplers Released . | . . . . . . Fabnet Peak Effective % . | . . . . . . Robots Rewired . | . . . . . . Allies Hacked . | . . . . . . Hacks Repelled . | . . . . . . Allies | -11 -10 -9 -8 -7 -7 -------- Run | Yrd Mat Mat Mat Fac Low Total Allies . | . . . . . . Largest Group . | . . . . . . Highest-Rated Group . | . . . . . . Highest-Rated Ally . | . . . . . . Total Orders . | . . . . . . Ally Attacks . | . . . . . . Total Damage . | . . . . . . Kills . | . . . . . . Allies Corrupted . | . . . . . . Allies Melted . | . . . . . . Intel | -11 -10 -9 -8 -7 -7 ------- Run | Yrd Mat Mat Mat Fac Low Robot Analysis Total . | . . . . . . Derelict Logs Recovered 1 | . . . . . 1 Drone Launches . | . . . . . . Drone Recoveries . | . . . . . . Exploration | -11 -10 -9 -8 -7 -7 ------------- Run | Yrd Mat Mat Mat Fac Low Turns Passed 2834 | 113 176 233 1081 918 313 Spaces Moved 2225 | 69 121 130 906 495 504 Core 231 | 1 . . 1 . 229 Treads 523 | . . . 178 345 . Legs 444 | 68 121 130 125 . . Wheels . | . . . . . . Hover . | . . . . . . Flight 1027 | . . . 602 150 275 Fastest Speed 28 | 50 120 120 28 31 28 Average Speed 88 | 118 120 120 74 133 48 Slowest Speed 760 | 120 120 120 300 760 500 Overloaded Moves . | . . . . . . Propulsion Burnouts . | . . . . . . Robots Hopped 17 | . . . 11 4 2 Cave-ins Triggered . | . . . . . . Exploration Rate (%) 25 | 6 22 18 34 10 61 Regions Visited 5 Branch Regions 1 Pre-discovered Areas 1 | . . . . . 1 Known Exits Taken . | . . . . . . Unknown Exits Taken 5 | 1 1 1 1 1 . Scrap Searched 1 | . . . . . 1 Spaces Dug . | . . . . . . Terrain Destroyed 76 | . . . 50 26 . Melee . | . . . . . . Projectile 31 | . . . 31 . . AOE 45 | . . . 19 26 . Terrain Rammed . | . . . . . . Walls Destroyed . | . . . . . . Machines Disabled . | . . . . . . Actions | -11 -10 -9 -8 -7 -7 --------- Run | Yrd Mat Mat Mat Fac Low Total 2780 | 88 152 169 1143 676 552 Wait 133 | . 19 8 45 43 18 Move 2192 | 68 120 129 888 487 500 Hop 11 | . . . 6 3 2 Pick Up 54 | 8 5 . 23 18 . Fast Attach 60 | 7 1 3 25 20 4 Attach 28 | . . 2 8 9 9 Detach 19 | . . 1 2 14 2 Swap 24 | . . 1 16 6 1 Drop 79 | . 6 2 33 36 2 Fire 180 | 5 1 23 97 40 14 Melee . | . . . . . . Ram . | . . . . . . Kick . | . . . . . . Crush . | . . . . . . Escape Stasis . | . . . . . . Rewire . | . . . . . . Trap . | . . . . . . Miscellaneous . | . . . . . . Route ------- -11/Scrapyard -10/Materials -9/Materials (discovered 2 exits: *Mat / [*Min]) -8/Materials -7/Factory -7/Lower Caves History --------- Turn | Location | Event 6 | -11/Scrapyard | Discovered new exit (range 15) 114 | -11/Scrapyard | Entered Materials 246 | -10/Materials | Discovered new exit (range 13) 290 | -10/Materials | Entered another Materials area 290 | -9/Materials | Evolved 2 slots: Propulsion x2 312 | -9/Materials | Build established: Mutant 336 | -9/Materials | Discovered new exit (range 13) 499 | -9/Materials | Discovered new exit (range 7) 523 | -9/Materials | Entered another Materials area 523 | -8/Materials | Evolved 2 slots: Utility x2 1014 | -8/Materials | Lost 3 parts (1n2u) 1218 | -8/Materials | Core integrity fell below 50% 1266 | -8/Materials | Lost 6 parts (1p3n1u1w) 1266 | -8/Materials | Discovered new exit (range 10) 1539 | -8/Materials | Build established: Scavenger-Mutant 1604 | -8/Materials | Entered Factory 1604 | -7/Factory | Evolved 2 slots: Utility x1, Weapon x1 1904 | -7/Factory | Build established: Scavenger-Gunner 2116 | -7/Factory | Garrison activated, responded to threat 2425 | -7/Factory | Fabricated Cesium-ion Thruster? 2516 | -7/Factory | Discovered new exit (range 12) 2522 | -7/Factory | Entered Lower Caves 2574 | -7/Lower Caves | Encountered a Warlord checkpoint 2586 | -7/Lower Caves | Learned location of Zion (-7) 2690 | -7/Lower Caves | Core integrity fell below 50% 2739 | -7/Lower Caves | Lost 18 parts (1p8n5u4w) 2746 | -7/Lower Caves | Attracted the attention of an 0b10 checkpoint 2747 | -7/Lower Caves | Core integrity fell below 20% 2835 | -7/Lower Caves | Destroyed by S-27 Virus with Autogun Last Messages --------------- 02712_ Acquired 2 matter. 02740_ Critical hit (Burn: +37). 02743_ Penetrated by Slug. 02746_ Y-54 Guardian: "INTERCEPTING UNREGISTERED DERELICT." 02749_ 7AVBIIRLZHD#VCXYO= LF%HGHH:6DLRVS7RHNY% 02761_ Acquired 21 matter. 02778_ Searching scrap... 02778_ Found Flamer. 02778_ Found Shock Rifle. 02778_ Found Great Maul. 02778_ Found 22 Matter. 02779_ Acquired Shock Rifle. 02781_ Acquired Flamer. 02804_ Slug penetrates Wall. 02808_ Penetrated by Slug. 02808_ Flamer destroyed. 02810_ Penetrated by Slug. 02815_ Acquired 50 matter. 02816_ System corrupted: Energy discharge (-38). 02829_ Shock Rifle destroyed. Map ----- +----------------------------------------------------+ | ??????????????????# #?## #???####?## ## | | ??????????????????# # ### #?????????## # | | ??????????????????#### ## #????????## | | ?????????????????????## #???????## | | ????????????????????### ##??###### ## | | ????????????????????# ##???#" #### | | ????????????????????# #???## #?## | | ????????????????????## ##?## ###?# | | ?????????????????????## ### %##?## | | ??????????????????????## ### | | ???????????????????????### | | ?????????????????????????## | | ??????????????????????????# ## | | ??????????????????????????######### | | ??????????????????????????????????## | | ???????????????????????????????????## ##### | | ????????????????????????????????????## ##???? | | ?????????????????????????????????????## # #????? | | ??????????????????????????????????????#### #????? | | ?????????????????????????????????????????# #????? | | ?????????????????????????????????????????# #???## | | ????????????????????????????????????????## #??? | | ???????????????????????????????????????## #????? | | ????????????????????##????????????????## ###????? | | ???????????????????## #######???????# #####??? | | ???????????????????# @ ###?????# ##?? | | ???????????????????# ####??# ##? | | ??????????????????# ###### #??## #? | | ??????????????????# ???????### ####### ## | | ?????????????????????????????## | | ??????????????????????????????# s | | ??????????????????????????????# # #######//### | | ?????????????????????????????# # #????# ? | | ?????????????????????????????### ## #????# | | ???????????????????????????????## ## #????#/#### | | ????????????????????????????????# ## #???? ???? | | ????????????????????????????????# ## #??? ????? | | ????????????????????????????????# ## #??""" ????? | | ????????????????????????????????# ## #??""" ????? | | ???????????????????????????????? #???"" ????? | | ???????????????????????????????? #????? ????? | | ????????????????????????????????#### #????? ????? | | ???????????????????????????????????# #??????????? | | ???????????????????????????????????? ???????????? | | ???????????????????????????????????? ???????????? | | ???????????????????????????????????? ???????????? | | ?????????????????????????????????????????????????? | | ?????????????????????????????????????????????????? | | ?????????????????????????????????????????????????? | | ?????????????????????????????????????????????????? | +----------------------------------------------------+ Best States ------------- Heat Dissipation 79 Energy Generation 18 Energy Capacity 450 Matter Stores 300 Matter Capacity 300 Sight Range 18 Terrain Scan Range 16 Terrain Scan Density 10 Armor Coverage 600 Evasion (%) 64 Targeting Accuracy 8 Target Analysis 5 Recoil Reduction 4 Offensive Hacking 10 Item Schematics ----------------- Cesium-ion Thruster | -8/Materials | Scanalyzed Robot Schematics ------------------ None Fabricated ------------ Cesium-ion Thruster | x2 | -7/Factory Alien Tech Used ----------------- None Achievements -------------- None Challenges ------------ None Game ------ Seed FlakVortexChainsword Manual? 0 Play Time 00:38:25 Cumulative 74.0 hours Start 2024.04.09 @ 20:44:34 End 2024.04.09 @ 22:21:41 Sessions 1 Manual Loads 0 Difficulty Rogue Special Mode None Game No. 157 Rogue 157 Adventurer 0 Explorer 0 Win Type - Total 0 Types 0/0/0/0/0/0/0/0/0 Lore% 28 Gallery% 42 Achievement% 32 Wizard Run 0 Options --------- Layout 0 ASCII 0 Keyboard 1 Movement Numpad Keybinds 0 Fullscreen 1 Font 24/Terminus Map View 76x50 Zoom Use 0% Tactical HUD 1 Map Filters NONE Filters NONE Steam 1 RUN: 902b995b-130e-4703-b06e-bc97e6373f01